[Event "WSTCC-50 2024"]
[Site "Krakow"]
[Date "2024.07.06"]
[Round "5.19"]
[White "Wilson, Edgar"]
[Black "Mai, Iris"]
[Result "0-1"]
[ECO "A11"]
[WhiteElo "1912"]
[BlackElo "1972"]
[Annotator "RC"]
[PlyCount "124"]
[EventDate "2024.07.01"]
[EventType "team-tourn"]
[EventCountry "POL"]
[SourceTitle "playchess.com"]
[Source "ChessBase"]
[SourceQuality "1"]
[TimeControl "40/5400+30:1800+30"]

1. e4 {[%emt 0:00:05]} a6 {[%emt 0:00:42]} 2. c4 {[%emt 0:02:50]} e6 {[%emt 0:02:01]} 3. Nc3 {[%emt 0:01:54]} c5 {[%emt 0:02:56]} 4. Nf3 {[%emt 0:01:07]} Qc7 {[%emt 0:00:32]} 5. d4 {[%emt 0:02:53]} cxd4 {[%emt 0:05:06]} 6. Nxd4 {[%emt 0:00:16]} Nf6 {[%emt 0:09:31]} 7. Be2 {[%emt 0:05:00]} Bb4 {[%emt 0:02:28]} 8. f3 {[%emt 0:16:05]} O-O {[%emt 0:06:16]} 9. O-O {[%emt 0:03:05]} Bxc3 {[%emt 0:08:22]} 10. bxc3 {[%emt 0:00:16]} d6 {[%emt 0:00:35]} 11. Bg5 {[%emt 0:03:58]} Nbd7 {[%emt 0:05:20]} 12. Bd3 {[%emt 0:04:28]} h6 {[%emt 0:13:41]} 13. Bd2 {[%emt 0:05:42]} Ne5 {[%emt 0:00:24]} 14. Qe2 {[%emt 0:01:27]} Nxd3 {[%emt 0:15:25]} 15. Qxd3 {[%emt 0:00:09]} e5 {[%emt 0:00:30]} 16. Nc2 {[%emt 0:04:46]} Be6 {[%emt 0:00:15]} 17. Ne3 {[%emt 0:00:36]} Rac8 {[%emt 0:03:19]} 18. Rfb1 {[%emt 0:11:35]} Bxc4 {[%emt 0:01:13]} 19. Nxc4 {[%emt 0:01:13]} Qxc4 {[%emt 0:00:05]} 20. Qxc4 {[%emt 0:04:10]} Rxc4 {[%emt 0:00:02]} 21. Rxb7 {[%emt 0:00:52]} d5 {[%emt 0:00:34]} 22. exd5 {[%emt 0:03:11]} Nxd5 {[%emt 0:02:05]} 23. Rc1 {[%emt 0:07:49]} Rfc8 {[%emt 0:01:30]} 24. Rb3 {[%emt 0:01:34]} R8c6 {[%emt 0:03:38]} 25. Kf2 {[%emt 0:01:27]} f5 {[%emt 0:04:41]} 26. g3 {[%emt 0:04:41]} Kh7 {[%emt 0:02:42]} 27. Ke2 {[%emt 0:03:57]} g5 {[%emt 0:02:36]} 28. Kf2 {[%emt 0:00:43]} Kg6 {[%emt 0:00:57]} 29. Ke2 {[%emt 0:02:06]} g4 {[%emt 0:00:36]} 30. Kf2 {[%emt 0:02:19]} gxf3 {[%emt 0:01:43]} 31. Kxf3 {[%emt 0:00:04]} Nf6 {[%emt 0:03:24]} 32. Be1 {[%emt 0:02:46]} e4+ {[%emt 0:00:39]} 33. Ke2 {[%emt 0:00:47]} Ng4 {[%emt 0:00:09]} 34. h3 {[%emt 0:00:30]} Ne5 {[%emt 0:00:05]} 35. Bd2 {[%emt 0:00:38]} Nf3 {[%emt 0:00:31]} 36. Be3 {[%emt 0:00:29]} h5 {[%emt 0:00:51]} 37. Rb8 {[%emt 0:01:29]} h4 {[%emt 0:02:23]} 38. gxh4 {[%emt 0:00:54]} Rc8 {[%emt 0:00:33]} 39. Rxc8 {[%emt 0:00:54]} Rxc8 {[%emt 0:00:01]} 40. c4 {[%emt 0:01:03]} Kh5 {[%emt 0:01:08]} 41. c5 {[%emt 0:05:15]} Rc6 {[%emt 0:13:17]} 42. Bf4 {[%emt 0:11:09]} Nxh4 {[%emt 0:08:36]} 43. Bd6 {[%emt 0:03:18]} Nf3 {[%emt 0:00:47]} 44. Ke3 {[%emt 0:01:00]} Kg6 {[%emt 0:04:24]} 45. Rb1 {[%emt 0:02:01]} Kf7 {[%emt 0:01:39]} 46. Rb6 {[%emt 0:02:55]} Rc8 {[%emt 0:00:04]} 47. Rxa6 {[%emt 0:00:47]} Ke6 {[%emt 0:00:05]} 48. Rb6 {[%emt 0:02:23]} Kd5 {[%emt 0:01:51]} 49. Rb2 {[%emt 0:02:42]} Ne5 {[%emt 0:01:23]} 50. Rf2 {[%emt 0:01:39]} Ke6 {[%emt 0:01:29]} 51. Kd4 {[%emt 0:00:55]} Nc6+ {[%emt 0:01:11]} 52. Kc4 {[%emt 0:00:25]} Rh8 {[%emt 0:00:36]} 53. Rh2 {[%emt 0:01:00]} Ne5+ {[%emt 0:00:40]} 54. Bxe5 {[%emt 0:01:05]} Kxe5 {[%emt 0:00:06]} 55. Kc3 {[%emt 0:01:02]} f4 {[%emt 0:00:16]} 56. Kd2 {[%emt 0:00:16]} e3+ {[%emt 0:00:44]} 57. Ke2 {[%emt 0:00:16]} Ke4 {[%emt 0:00:14]} 58. h4 {[%emt 0:00:54]} f3+ {[%emt 0:00:30]} 59. Ke1 {[%emt 0:00:28]} f2+ {[%emt 0:00:52]} 60. Kf1 {[%emt 0:00:38]} Rb8 {[%emt 0:00:47]} 61. Ke2 {[%emt 0:00:30]} Rb2+ {[%emt 0:00:22]} 62. Kf1 {[%emt 0:00:05]} Rb1+ {[%emt 0:00:10]} 0-1

[Event "WSTCC-50 2024"]
[Site "Krakow"]
[Date "2024.07.06"]
[Round "5.19"]
[White "Metcalfe, Allister"]
[Black "Moritz, Hartmut"]
[Result "0-1"]
[ECO "A25"]
[WhiteElo "1889"]
[BlackElo "2002"]
[Annotator "NA RC"]
[PlyCount "62"]
[EventDate "2024.07.01"]
[EventType "team-tourn"]
[EventCountry "POL"]
[SourceTitle "playchess.com"]
[Source "ChessBase"]
[SourceQuality "1"]
[TimeControl "40/5400+30:1800+30"]

1. c4 {[%emt 0:00:08]} e5 {[%emt 0:00:13]} 2. Nc3 {[%emt 0:00:33]} Nc6 {[%emt 0:00:32]} 3. g3 {[%emt 0:00:40]} Bc5 {[%emt 0:00:41]} 4. Bg2 {[%emt 0:01:54]} Nf6 {[%emt 0:01:44]} 5. e3 {[%emt 0:01:35]} O-O {[%emt 0:01:13]} 6. Nge2 {[%emt 0:00:27]} Re8 {[%emt 0:00:44]} 7. d3 {[%emt 0:03:36]} d6 {[%emt 0:04:04]} 8. O-O {[%emt 0:01:16]} a6 {[%emt 0:08:16]} 9. a3 {[%emt 0:07:21]} a5 {[%emt 0:03:00]} 10. Rb1 {[%emt 0:04:02]} Bf5 {[%emt 0:01:04]} 11. h3 {[%emt 0:01:33]} h6 {[%emt 0:09:28]} 12. Kh2 {[%emt 0:04:20]} Qc8 {[%emt 0:06:15]} 13. Nd5 {[%emt 0:05:16]} Nxd5 {[%emt 0:03:10]} 14. cxd5 {[%emt 0:00:42]} Ne7 {[%emt 0:01:36]} 15. e4 {[%emt 0:04:03]} Bh7 {[%emt 0:03:09]} 16. Be3 {[%emt 0:06:09]} Bxe3 {[%emt 0:15:01]} 17. fxe3 {[%emt 0:00:03]} Qd7 {[%emt 0:00:51]} 18. Rc1 {[%emt 0:07:55]} c6 {[%emt 0:05:45]} 19. Qa4 {[%emt 0:05:00]} Reb8 {[%emt 0:03:27]} 20. dxc6 {[%emt 0:01:14]} bxc6 {[%emt 0:02:33]} 21. Qc4 {[%emt 0:01:19]} Qe6 {[%emt 0:03:19]} 22. Qxe6 {[%emt 0:02:30]} fxe6 {[%emt 0:00:03]} 23. Rc2 {[%emt 0:01:41]} Rb3 {[%emt 0:01:31]} 24. Nc1 {[%emt 0:01:39]} Rb5 {[%emt 0:02:08]} 25. h4 {[%emt 0:04:39]} d5 {[%emt 0:08:26]} 26. Bh3 {[%emt 0:05:04]} dxe4 {[%emt 0:01:03]} 27. Bxe6+ {[%emt 0:00:17]} Kh8 {[%emt 0:00:05]} 28. Rd2 {[%emt 0:14:10]} exd3 {[%emt 0:00:34]} 29. Bc4 {[%emt 0:12:45]} Rc5 {[%emt 0:01:37]} 30. Bxd3 {[%emt 0:00:48]} Rd8 {[%emt 0:02:56]} 31. Rdd1 {[%emt 0:00:13]} Rxc1 {[%emt 0:01:48]} 0-1

[Event "WSTCC-50 2024"]
[Site "Krakow"]
[Date "2024.07.06"]
[Round "5.20"]
[White "Jahn, Constanze"]
[Black "Proudfoot, Andy"]
[Result "1-0"]
[ECO "B07"]
[WhiteElo "2051"]
[BlackElo "1607"]
[Annotator "NA RC"]
[PlyCount "68"]
[EventDate "2024.07.01"]
[EventType "team-tourn"]
[EventCountry "POL"]
[SourceTitle "playchess.com"]
[Source "ChessBase"]
[SourceQuality "1"]
[TimeControl "40/5400+30:1800+30"]

1. e4 {[%emt 0:00:02]} d6 {[%emt 0:00:11]} 2. d4 {[%emt 0:00:06]} Nf6 {[%emt 0:00:13]} 3. Nc3 {[%emt 0:00:07]} Nbd7 {[%emt 0:00:28]} 4. Nf3 {[%emt 0:01:17]} e5 {[%emt 0:00:25]} 5. Bc4 {[%emt 0:03:45]} Be7 {[%emt 0:00:12]} 6. O-O {[%emt 0:04:13]} h6 {[%emt 0:03:30]} 7. Qe2 {[%emt 0:03:43]} c6 {[%emt 0:00:34]} 8. a3 {[%emt 0:06:00]} Qc7 {[%emt 0:01:50]} 9. dxe5 {[%emt 0:02:57]} dxe5 {[%emt 0:01:00]} 10. b4 {[%emt 0:03:47]} Nf8 {[%emt 0:12:53]} 11. Nh4 {[%emt 0:11:17]} g6 {[%emt 0:12:00]} 12. g3 {[%emt 0:08:46]} Ne6 {[%emt 0:08:13]} 13. Bxe6 {[%emt 0:04:53]} Bxe6 {[%emt 0:00:46]} 14. f4 {[%emt 0:00:43]} Bh3 {[%emt 0:03:24]} 15. Re1 {[%emt 0:00:42]} g5 {[%emt 0:06:48]} 16. fxg5 {[%emt 0:03:06]} hxg5 {[%emt 0:01:16]} 17. Bxg5 {[%emt 0:02:27]} Rg8 {[%emt 0:03:06]} 18. Bxf6 {[%emt 0:05:38]} Bxf6 {[%emt 0:01:23]} 19. Nf5 {[%emt 0:01:14]} O-O-O {[%emt 0:02:52]} 20. Qf2 {[%emt 0:01:58]} Qb6 {[%emt 0:06:00]} 21. Qxb6 {[%emt 0:06:36]} axb6 {[%emt 0:00:06]} 22. Ne3 {[%emt 0:08:02]} Bg5 {[%emt 0:05:36]} 23. Rad1 {[%emt 0:03:29]} Bxe3+ {[%emt 0:00:24]} 24. Rxe3 {[%emt 0:00:04]} Rd4 {[%emt 0:04:43]} 25. Red3 {[%emt 0:03:09]} Rgd8 {[%emt 0:01:10]} 26. Ne2 {[%emt 0:01:08]} R4d7 {[%emt 0:05:38]} 27. Rxd7 {[%emt 0:01:04]} Rxd7 {[%emt 0:00:24]} 28. Rxd7 {[%emt 0:00:11]} Kxd7 {[%emt 0:00:17]} 29. Kf2 {[%emt 0:00:27]} Kd6 {[%emt 0:02:22]} 30. Ng1 {[%emt 0:02:41]} Bd7 {[%emt 0:01:22]} 31. Nf3 {[%emt 0:00:32]} f5 {[%emt 0:02:52]} 32. Ke3 {[%emt 0:02:15]} c5 {[%emt 0:01:58]} 33. c3 {[%emt 0:00:17]} fxe4 {[%emt 0:01:50]} 34. Kxe4 {[%emt 0:00:57]} Bc6+ {[%emt 0:00:21]} 1-0

[Event "WSTCC-50 2024"]
[Site "Krakow"]
[Date "2024.07.06"]
[Round "5.20"]
[White "Dettmann, Holger"]
[Black "Schutte, Andre"]
[Result "1-0"]
[ECO "A05"]
[WhiteElo "1965"]
[BlackElo "1817"]
[Annotator "NA RC"]
[PlyCount "91"]
[EventDate "2024.07.01"]
[EventType "team-tourn"]
[EventCountry "POL"]
[SourceTitle "playchess.com"]
[Source "ChessBase"]
[SourceQuality "1"]
[TimeControl "40/5400+30:1800+30"]

1. Nf3 {[%emt 0:00:29]} Nf6 {[%emt 0:01:21]} 2. g3 {[%emt 0:00:26]} g6 {[%emt 0:00:09]} 3. Bg2 {[%emt 0:00:02]} Bg7 {[%emt 0:00:09]} 4. O-O {[%emt 0:00:07]} O-O {[%emt 0:00:05]} 5. d4 {[%emt 0:09:53]} d6 {[%emt 0:03:16]} 6. c4 {[%emt 0:03:17]} Na6 {[%emt 0:02:06]} 7. Nc3 {[%emt 0:00:36]} c5 {[%emt 0:02:50]} 8. Re1 {[%emt 0:20:01]} cxd4 {[%emt 0:06:30]} 9. Nxd4 {[%emt 0:00:06]} Nc5 {[%emt 0:00:53]} 10. h3 {[%emt 0:04:37]} Rb8 {[%emt 0:03:21]} 11. Be3 {[%emt 0:00:13]} a6 {[%emt 0:00:54]} 12. Rc1 {[%emt 0:01:24]} Ne6 {[%emt 0:13:05]} 13. b4 {[%emt 0:03:23]} Nxd4 {[%emt 0:06:22]} 14. Bxd4 {[%emt 0:00:46]} Be6 {[%emt 0:01:28]} 15. Nd5 {[%emt 0:08:17]} Nxd5 {[%emt 0:06:05]} 16. cxd5 {[%emt 0:00:07]} Bd7 {[%emt 0:00:28]} 17. Bxg7 {[%emt 0:00:29]} Kxg7 {[%emt 0:00:01]} 18. Qd4+ {[%emt 0:00:27]} Kg8 {[%emt 0:00:45]} 19. Rc3 {[%emt 0:00:41]} Rc8 {[%emt 0:01:23]} 20. Rec1 {[%emt 0:00:17]} Rxc3 {[%emt 0:00:20]} 21. Rxc3 {[%emt 0:00:06]} Qb8 {[%emt 0:00:36]} 22. Qe3 {[%emt 0:01:17]} Re8 {[%emt 0:00:47]} 23. a3 {[%emt 0:04:26]} Bb5 {[%emt 0:03:06]} 24. Bf1 {[%emt 0:03:30]} e5 {[%emt 0:06:06]} 25. dxe6 {[%emt 0:01:57]} Rxe6 {[%emt 0:00:21]} 26. Qc1 {[%emt 0:00:10]} Re8 {[%emt 0:04:55]} 27. h4 {[%emt 0:06:28]} Bc6 {[%emt 0:03:18]} 28. Bg2 {[%emt 0:03:49]} d5 {[%emt 0:01:53]} 29. e3 {[%emt 0:10:51]} Qd6 {[%emt 0:03:02]} 30. Qd2 {[%emt 0:00:08]} Qe5 {[%emt 0:14:53]} 31. Rd3 {[%emt 0:01:42]} Rd8 {[%emt 0:01:14]} 32. Rd4 {[%emt 0:00:08]} f5 {[%emt 0:01:48]} 33. a4 {[%emt 0:03:11]} Bxa4 {[%emt 0:05:04]} 34. Bxd5+ {[%emt 0:02:20]} Kg7 {[%emt 0:00:09]} 35. Bxb7 {[%emt 0:00:33]} Rxd4 {[%emt 0:00:33]} 36. exd4 {[%emt 0:04:05]} Qd6 {[%emt 0:00:12]} 37. Qc3 {[%emt 0:00:42]} Bb5 {[%emt 0:00:52]} 38. Qc5 {[%emt 0:00:41]} Qe6 {[%emt 0:01:03]} 39. Qe5+ {[%emt 0:01:00]} Qxe5 {[%emt 0:01:09]} 40. dxe5 {[%emt 0:00:03]} h6 {[%emt 0:00:41]} 41. f4 {[%emt 0:30:06]} g5 {[%emt 0:30:05]} 42. hxg5 {[%emt 0:02:36]} hxg5 {[%emt 0:00:10]} 43. Kf2 {[%emt 0:00:12]} gxf4 {[%emt 0:00:53]} 44. gxf4 {[%emt 0:00:02]} Kf7 {[%emt 0:02:02]} 45. Bc8 {[%emt 0:00:11]} Kg6 {[%emt 0:00:11]} 46. Ke3 {[%emt 0:00:07]} 1-0

[Event "WSTCC-50 2024"]
[Site "Krakow"]
[Date "2024.07.06"]
[Round "5.21"]
[White "Lalic, Susan K"]
[Black "Tsiganova, Monika"]
[Result "1/2-1/2"]
[ECO "B15"]
[WhiteElo "2235"]
[BlackElo "1999"]
[Annotator "RC"]
[PlyCount "150"]
[EventDate "2024.07.01"]
[EventType "team-tourn"]
[EventCountry "POL"]
[SourceTitle "playchess.com"]
[Source "ChessBase"]
[SourceQuality "1"]
[TimeControl "40/5400+30:1800+30"]

1. e4 {[%emt 0:00:04]} c6 {[%emt 0:00:16]} 2. d4 {[%emt 0:00:14]} d5 {[%emt 0:00:12]} 3. Nd2 {[%emt 0:00:06]} dxe4 {[%emt 0:00:18]} 4. Nxe4 {[%emt 0:00:05]} Nf6 {[%emt 0:00:40]} 5. Nxf6+ {[%emt 0:00:05]} exf6 {[%emt 0:00:13]} 6. c3 {[%emt 0:00:10]} Bd6 {[%emt 0:00:10]} 7. Bd3 {[%emt 0:00:06]} O-O {[%emt 0:00:30]} 8. Ne2 {[%emt 0:00:56]} Re8 {[%emt 0:00:56]} 9. Qc2 {[%emt 0:00:07]} h5 {[%emt 0:01:01]} 10. O-O {[%emt 0:00:04]} h4 {[%emt 0:00:41]} 11. Bf4 {[%emt 0:01:15]} h3 {[%emt 0:01:33]} 12. Rfe1 {[%emt 0:04:35]} Na6 {[%emt 0:02:18]} 13. Bxd6 {[%emt 0:06:16]} Qxd6 {[%emt 0:00:35]} 14. Nf4 {[%emt 0:00:46]} Bd7 {[%emt 0:01:55]} 15. Nxh3 {[%emt 0:09:28]} Bxh3 {[%emt 0:07:54]} 16. Bxa6 {[%emt 0:05:40]} bxa6 {[%emt 0:04:22]} 17. gxh3 {[%emt 0:01:03]} Qd5 {[%emt 0:04:51]} 18. Qd2 {[%emt 0:24:11]} c5 {[%emt 0:09:47]} 19. Qf4 {[%emt 0:16:37]} cxd4 {[%emt 0:01:38]} 20. Qxd4 {[%emt 0:03:31]} Qg5+ {[%emt 0:04:57]} 21. Kf1 {[%emt 0:03:26]} Red8 {[%emt 0:01:52]} 22. Qe3 {[%emt 0:01:20]} Qb5+ {[%emt 0:01:01]} 23. Qe2 {[%emt 0:03:17]} Qb7 {[%emt 0:03:23]} 24. f3 {[%emt 0:00:51]} Rd5 {[%emt 0:01:42]} 25. Rad1 {[%emt 0:01:07]} Re5 {[%emt 0:01:07]} 26. Qf2 {[%emt 0:00:48]} Rg5 {[%emt 0:06:02]} 27. Re4 {[%emt 0:05:18]} Qb5+ {[%emt 0:03:42]} 28. c4 {[%emt 0:01:23]} Qf5 {[%emt 0:00:25]} 29. Rg4 {[%emt 0:01:02]} Re8 {[%emt 0:00:28]} 30. Kg2 {[%emt 0:02:22]} Qa5 {[%emt 0:01:25]} 31. Rxg5 {[%emt 0:02:50]} Qxg5+ {[%emt 0:00:22]} 32. Kh1 {[%emt 0:03:53]} Qf5 {[%emt 0:01:52]} 33. Kg2 {[%emt 0:00:20]} Qg5+ {[%emt 0:01:47]} 34. Kh1 {[%emt 0:00:03]} Qf5 {[%emt 0:00:50]} 35. h4 {[%emt 0:00:46]} Qf4 {[%emt 0:00:30]} 36. Rd4 {[%emt 0:01:43]} Qf5 {[%emt 0:02:01]} 37. Kg2 {[%emt 0:00:54]} Qg6+ {[%emt 0:00:57]} 38. Rg4 {[%emt 0:00:08]} Qd3 {[%emt 0:00:26]} 39. Rd4 {[%emt 0:00:50]} Qg6+ {[%emt 0:00:34]} 40. Rg4 {[%emt 0:00:20]} Qd3 {[%emt 0:00:11]} 41. Rd4 {[%emt 0:03:42]} Qg6+ {[%emt 0:00:07]} 42. Kh3 {[%emt 0:03:09]} Qf5+ {[%emt 0:00:59]} 43. Kg3 {[%emt 0:02:49]} Qe5+ {[%emt 0:02:49]} 44. Kg2 {[%emt 0:00:16]} f5 {[%emt 0:00:55]} 45. Qd2 {[%emt 0:04:39]} Re6 {[%emt 0:01:42]} 46. h5 {[%emt 0:02:08]} f4 {[%emt 0:02:49]} 47. Rd5 {[%emt 0:03:47]} Qe2+ {[%emt 0:02:41]} 48. Qxe2 {[%emt 0:00:26]} Rxe2+ {[%emt 0:00:06]} 49. Kh3 {[%emt 0:00:05]} Rxb2 {[%emt 0:00:05]} 50. Ra5 {[%emt 0:01:03]} Rb6 {[%emt 0:00:19]} 51. Kg4 {[%emt 0:00:07]} Rc6 {[%emt 0:00:34]} 52. c5 {[%emt 0:01:57]} Kf8 {[%emt 0:05:02]} 53. Kxf4 {[%emt 0:00:04]} Ke7 {[%emt 0:00:15]} 54. Ke5 {[%emt 0:01:14]} Rh6 {[%emt 0:00:37]} 55. Kd4 {[%emt 0:02:27]} Kd7 {[%emt 0:00:59]} 56. f4 {[%emt 0:01:05]} Kc7 {[%emt 0:00:44]} 57. Ra3 {[%emt 0:01:57]} Rxh5 {[%emt 0:01:45]} 58. Rxa6 {[%emt 0:00:34]} Kb7 {[%emt 0:00:10]} 59. Ra3 {[%emt 0:02:34]} Rxh2 {[%emt 0:01:14]} 60. Rg3 {[%emt 0:03:03]} g6 {[%emt 0:04:59]} 61. Ra3 {[%emt 0:02:44]} Re2 {[%emt 0:03:35]} 62. Kd5 {[%emt 0:00:07]} Re6 {[%emt 0:00:35]} 63. Rh3 {[%emt 0:01:20]} Kc7 {[%emt 0:00:50]} 64. Ra3 {[%emt 0:00:44]} Kb7 {[%emt 0:05:21]} 65. Rf3 {[%emt 0:00:12]} Ra6 {[%emt 0:01:42]} 66. Re3 {[%emt 0:00:24]} Rf6 {[%emt 0:01:36]} 67. Re7+ {[%emt 0:00:38]} Ka6 {[%emt 0:03:05]} 68. Ke5 {[%emt 0:02:07]} Rf5+ {[%emt 0:00:31]} 69. Ke4 {[%emt 0:00:51]} Rf6 {[%emt 0:00:48]} 70. Rd7 {[%emt 0:00:16]} Kb5 {[%emt 0:02:25]} 71. Rxa7 {[%emt 0:00:02]} Kxc5 {[%emt 0:00:18]} 72. a4 {[%emt 0:00:56]} Re6+ {[%emt 0:04:17]} 73. Kf3 {[%emt 0:00:05]} f6 {[%emt 0:00:19]} 74. Rg7 {[%emt 0:00:06]} g5 {[%emt 0:02:01]} 75. fxg5 Kd5 1/2-1/2

[Event "WSTCC-50 2024"]
[Site "Krakow"]
[Date "2024.07.06"]
[Round "5.21"]
[White "Mertens, Marc"]
[Black "Slabek, Grzegorz"]
[Result "1/2-1/2"]
[ECO "B01"]
[WhiteElo "2142"]
[BlackElo "1962"]
[Annotator "RC"]
[PlyCount "96"]
[EventDate "2024.07.01"]
[EventType "team-tourn"]
[EventCountry "POL"]
[SourceTitle "playchess.com"]
[Source "ChessBase"]
[SourceQuality "1"]
[TimeControl "40/5400+30:1800+30"]

1. e4 {[%emt 0:00:03]} d5 {[%emt 0:00:13]} 2. exd5 {[%emt 0:00:06]} Nf6 {[%emt 0:00:13]} 3. Nf3 {[%emt 0:00:23]} Nxd5 {[%emt 0:00:24]} 4. d4 {[%emt 0:00:07]} Bf5 {[%emt 0:00:29]} 5. Bd3 {[%emt 0:00:50]} Bxd3 {[%emt 0:01:46]} 6. Qxd3 {[%emt 0:00:03]} c6 {[%emt 0:00:25]} 7. c4 {[%emt 0:01:37]} Nf6 {[%emt 0:00:16]} 8. Nc3 {[%emt 0:00:53]} e6 {[%emt 0:00:08]} 9. O-O {[%emt 0:00:05]} Be7 {[%emt 0:00:04]} 10. Bf4 {[%emt 0:07:06]} O-O {[%emt 0:00:09]} 11. h3 {[%emt 0:00:39]} Nbd7 {[%emt 0:01:07]} 12. Rfd1 {[%emt 0:00:15]} a5 {[%emt 0:00:29]} 13. Qc2 {[%emt 0:08:43]} Nb6 {[%emt 0:02:26]} 14. b3 {[%emt 0:09:04]} a4 {[%emt 0:00:42]} 15. Rab1 {[%emt 0:12:18]} axb3 {[%emt 0:08:38]} 16. Qxb3 {[%emt 0:00:18]} Ra6 {[%emt 0:00:05]} 17. c5 {[%emt 0:07:10]} Nbd5 {[%emt 0:00:57]} 18. Nxd5 {[%emt 0:00:08]} Nxd5 {[%emt 0:00:22]} 19. Qxb7 {[%emt 0:00:17]} Rxa2 {[%emt 0:01:35]} 20. Ne5 {[%emt 0:09:10]} Bh4 {[%emt 0:03:50]} 21. Rd2 {[%emt 0:10:56]} Nxf4 {[%emt 0:03:26]} 22. Rxa2 {[%emt 0:00:07]} Qd5 {[%emt 0:00:35]} 23. Nf3 {[%emt 0:02:23]} Qxa2 {[%emt 0:00:18]} 24. Nxh4 {[%emt 0:00:05]} Ne2+ {[%emt 0:01:01]} 25. Kh1 {[%emt 0:08:45]} Nxd4 {[%emt 0:00:10]} 26. Rb2 {[%emt 0:01:56]} Qd5 {[%emt 0:00:21]} 27. Qb4 {[%emt 0:02:04]} e5 {[%emt 0:09:47]} 28. Rd2 {[%emt 0:02:18]} g6 {[%emt 0:00:41]} 29. f4 {[%emt 0:03:20]} f6 {[%emt 0:01:16]} 30. Nf3 {[%emt 0:00:37]} Rd8 {[%emt 0:00:34]} 31. fxe5 {[%emt 0:00:48]} fxe5 {[%emt 0:00:23]} 32. Qb7 {[%emt 0:03:03]} h6 {[%emt 0:04:18]} 33. Qe7 {[%emt 0:01:16]} Rf8 {[%emt 0:03:22]} 34. Nxe5 {[%emt 0:04:47]} Qe4 {[%emt 0:06:38]} 35. Nxg6 {[%emt 0:03:11]} Re8 {[%emt 0:04:48]} 36. Qxe4 {[%emt 0:01:59]} Rxe4 {[%emt 0:00:10]} 37. Ne7+ Kf7 {[%emt 0:00:46]} 38. Nc8 {[%emt 0:00:36]} Ke6 {[%emt 0:02:11]} 39. Nd6 {[%emt 0:00:36]} Re1+ {[%emt 0:02:09]} 40. Kh2 {[%emt 0:01:30]} Nb3 {[%emt 0:00:18]} 41. Rc2 {[%emt 0:08:15]} Nxc5 {[%emt 0:00:10]} 42. Rxc5 {[%emt 0:00:05]} Kxd6 {[%emt 0:00:12]} 43. Rh5 {[%emt 0:00:06]} Re6 {[%emt 0:00:06]} 44. Kg3 {[%emt 0:00:37]} c5 {[%emt 0:00:06]} 45. Kf4 {[%emt 0:01:30]} Kc6 {[%emt 0:01:08]} 46. g4 {[%emt 0:01:41]} c4 {[%emt 0:00:37]} 47. g5 {[%emt 0:01:21]} hxg5+ {[%emt 0:00:23]} 48. Rxg5 {[%emt 0:00:08]} Rh6 {[%emt 0:01:38]} 1/2-1/2

[Event "WSTCC-50 2024"]
[Site "Krakow"]
[Date "2024.07.06"]
[Round "5.22"]
[White "Narva, Regina"]
[Black "Regan, Natasha K"]
[Result "1/2-1/2"]
[ECO "C50"]
[WhiteElo "1921"]
[BlackElo "2015"]
[Annotator "NA RC"]
[PlyCount "26"]
[EventDate "2024.07.01"]
[EventType "team-tourn"]
[EventCountry "POL"]
[SourceTitle "playchess.com"]
[Source "ChessBase"]
[SourceQuality "1"]
[TimeControl "40/5400+30:1800+30"]

1. e4 {[%emt 0:00:09]} e5 {[%emt 0:00:10]} 2. Nf3 {[%emt 0:00:48]} Nc6 {[%emt 0:00:31]} 3. Bc4 {[%emt 0:01:10]} Be7 {[%emt 0:00:54]} 4. c3 {[%emt 0:01:49]} Nf6 {[%emt 0:00:56]} 5. d3 {[%emt 0:01:59]} d6 {[%emt 0:00:51]} 6. h3 {[%emt 0:02:02]} a6 {[%emt 0:01:59]} 7. Bb3 {[%emt 0:05:30]} O-O {[%emt 0:03:46]} 8. O-O {[%emt 0:03:56]} Na5 {[%emt 0:03:36]} 9. Bc2 {[%emt 0:01:30]} c5 {[%emt 0:01:06]} 10. d4 {[%emt 0:05:55]} cxd4 {[%emt 0:04:01]} 11. cxd4 {[%emt 0:00:45]} Nc6 {[%emt 0:02:20]} 12. Nc3 {[%emt 0:04:53]} b5 {[%emt 0:12:04]} 13. a3 {[%emt 0:06:16]} Bb7 {[%emt 0:06:03]} 1/2-1/2

[Event "WSTCC-50 2024"]
[Site "Krakow"]
[Date "2024.07.06"]
[Round "5.22"]
[White "Kawula, Andrzej"]
[Black "Haensel, Jean-Marie"]
[Result "1-0"]
[ECO "A90"]
[WhiteElo "1847"]
[BlackElo "1868"]
[Annotator "NA RC"]
[PlyCount "83"]
[EventDate "2024.07.01"]
[EventType "team-tourn"]
[EventCountry "POL"]
[SourceTitle "playchess.com"]
[Source "ChessBase"]
[SourceQuality "1"]
[TimeControl "40/5400+30:1800+30"]

1. d4 {[%emt 0:00:12]} e6 {[%emt 0:00:14]} 2. c4 {[%emt 0:00:46]} f5 {[%emt 0:00:14]} 3. g3 {[%emt 0:00:41]} Nf6 {[%emt 0:00:16]} 4. Bg2 {[%emt 0:00:30]} d5 {[%emt 0:01:33]} 5. e3 {[%emt 0:04:08]} c6 {[%emt 0:00:52]} 6. Nf3 {[%emt 0:01:09]} Ne4 {[%emt 0:01:06]} 7. O-O {[%emt 0:01:40]} Nd7 {[%emt 0:01:38]} 8. cxd5 {[%emt 0:01:19]} exd5 {[%emt 0:01:56]} 9. Nc3 {[%emt 0:00:42]} Be7 {[%emt 0:00:53]} 10. Qb3 {[%emt 0:09:16]} Ndf6 {[%emt 0:03:07]} 11. Ne5 {[%emt 0:01:11]} Qb6 {[%emt 0:03:49]} 12. f3 {[%emt 0:06:42]} Nxc3 {[%emt 0:01:58]} 13. bxc3 {[%emt 0:00:20]} Qxb3 {[%emt 0:03:16]} 14. axb3 {[%emt 0:00:11]} O-O {[%emt 0:00:30]} 15. Ba3 {[%emt 0:01:46]} Bxa3 {[%emt 0:01:11]} 16. Rxa3 {[%emt 0:00:07]} Nd7 {[%emt 0:01:12]} 17. Nd3 {[%emt 0:01:38]} Re8 {[%emt 0:01:52]} 18. Kf2 {[%emt 0:00:29]} Re7 {[%emt 0:01:10]} 19. Rfa1 {[%emt 0:00:27]} a6 {[%emt 0:00:36]} 20. c4 {[%emt 0:02:53]} Nf6 {[%emt 0:01:53]} 21. Ne5 {[%emt 0:03:46]} Nd7 {[%emt 0:01:59]} 22. f4 {[%emt 0:07:29]} Nxe5 {[%emt 0:04:27]} 23. fxe5 {[%emt 0:01:05]} Be6 {[%emt 0:02:14]} 24. Rc1 {[%emt 0:02:11]} Kf7 {[%emt 0:02:15]} 25. Ra5 {[%emt 0:02:50]} Rd7 {[%emt 0:01:40]} 26. cxd5 {[%emt 0:05:13]} Bxd5 {[%emt 0:00:48]} 27. Bxd5+ {[%emt 0:02:37]} cxd5 {[%emt 0:00:21]} 28. Rac5 {[%emt 0:00:30]} Ke7 {[%emt 0:04:14]} 29. Kf3 {[%emt 0:01:09]} Ke6 {[%emt 0:03:47]} 30. Kf4 {[%emt 0:04:38]} Rf8 {[%emt 0:05:02]} 31. Rc7 {[%emt 0:01:30]} Rff7 {[%emt 0:00:23]} 32. Rxd7 {[%emt 0:00:18]} Rxd7 {[%emt 0:00:12]} 33. Rc8 {[%emt 0:00:59]} h6 {[%emt 0:02:24]} 34. h4 {[%emt 0:00:26]} Rf7 {[%emt 0:03:15]} 35. Rd8 {[%emt 0:02:50]} Re7 {[%emt 0:03:17]} 36. Rd6+ {[%emt 0:00:47]} Kf7 {[%emt 0:00:45]} 37. Kxf5 {[%emt 0:00:50]} a5 {[%emt 0:00:44]} 38. e6+ {[%emt 0:01:44]} Ke8 {[%emt 0:00:33]} 39. Rxd5 {[%emt 0:00:17]} Rc7 {[%emt 0:00:59]} 40. Rb5 {[%emt 0:02:13]} Rc3 {[%emt 0:00:20]} 41. Ke4 {[%emt 0:31:24]} Ke7 {[%emt 0:30:56]} 42. d5 {[%emt 0:00:41]} 1-0